[Event "3rd Memorial Warakomska 2019"]
[Site "Suwalki"]
[Date "2019.08.07"]
[Round "3.27"]
[White "Gurbanov, Andrei"]
[Black "Pniaczek, Marek"]
[Result "1/2-1/2"]
[ECO "A45"]
[WhiteElo "2305"]
[BlackElo "2276"]
[Annotator "NA"]
[PlyCount "71"]
[EventDate "2019.08.05"]
[EventType "swiss"]
[EventCountry "POL"]
[SourceTitle "playchess.com"]
[Source "ChessBase"]
[SourceQuality "1"]
[TimeControl "40/5400+30:1800+30"]

1. d4 {[%emt 0:03:37]} Nf6 {[%emt 0:00:00]} 2. g3 {[%emt 0:00:04]} g6 {[%emt 0:00:25]} 3. Bg2 {[%emt 0:00:05]} Bg7 {[%emt 0:00:46]} 4. e4 {[%emt 0:00:16]} d6 {[%emt 0:01:38]} 5. Nc3 {[%emt 0:00:43]} O-O {[%emt 0:02:44]} 6. Nge2 {[%emt 0:01:04]} e5 {[%emt 0:01:50]} 7. h3 {[%emt 0:01:26]} exd4 {[%emt 0:05:37]} 8. Nxd4 {[%emt 0:00:08]} Re8 {[%emt 0:00:25]} 9. O-O {[%emt 0:00:32]} Nbd7 {[%emt 0:03:54]} 10. Re1 {[%emt 0:03:37]} a5 {[%emt 0:02:05]} 11. Bf4 {[%emt 0:10:20]} Nc5 {[%emt 0:09:08]} 12. Ndb5 {[%emt 0:18:16]} Ne6 {[%emt 0:22:29]} 13. Be3 {[%emt 0:02:37]} Bd7 {[%emt 0:01:20]} 14. a4 {[%emt 0:00:33]} Bc6 {[%emt 0:01:50]} 15. Qd2 {[%emt 0:19:51]} Nd7 $16 {[%emt 0:06:40]} 16. Rad1 {[%emt 0:01:29]} Nec5 {[%emt 0:02:16]} 17. Bd4 {[%emt 0:01:16]} Bxd4 {[%emt 0:02:14]} 18. Qxd4 {[%emt 0:00:09]} Bxb5 {[%emt 0:04:46]} 19. axb5 {[%emt 0:02:01]} Qf6 {[%emt 0:01:21]} 20. Qxf6 {[%emt 0:00:29]} Nxf6 {[%emt 0:00:10]} 21. b6 {[%emt 0:00:07]} c6 {[%emt 0:07:15]} 22. Rxd6 {[%emt 0:01:52]} Nfd7 {[%emt 0:01:53]} 23. Na4 {[%emt 0:07:30]} Nxa4 {[%emt 0:03:29]} 24. Rxd7 {[%emt 0:00:07]} Nc5 {[%emt 0:00:57]} 25. Rd4 {[%emt 0:01:29]} Ra6 {[%emt 0:01:28]} 26. b4 {[%emt 0:02:40]} Ne6 {[%emt 0:03:42]} 27. Rc4 {[%emt 0:02:58]} a4 {[%emt 0:00:32]} 28. Ra1 {[%emt 0:00:15]} Rea8 {[%emt 0:00:35]} 29. b5 {[%emt 0:01:29]} cxb5 {[%emt 0:00:57]} 30. Rb4 {[%emt 0:00:07]} Rxb6 {[%emt 0:00:48]} 31. c4 {[%emt 0:00:47]} Nd4 {[%emt 0:04:44]} 32. cxb5 {[%emt 0:00:10]} Nc2 {[%emt 0:00:16]} 33. Rbxa4 {[%emt 0:00:07]} Rxa4 {[%emt 0:00:04]} 34. Rxa4 {[%emt 0:00:08]} Rxb5 {[%emt 0:00:02]} 35. f4 {[%emt 0:00:27]} Ne1 {[%emt 0:01:58]} 36. e5 {[%emt 0:01:28]} 1/2-1/2

[Event "3rd Memorial Warakomska 2019"]
[Site "Suwalki"]
[Date "2019.08.07"]
[Round "3.28"]
[White "Fiedorek, Michal"]
[Black "Lis, Mateusz"]
[Result "1/2-1/2"]
[ECO "B47"]
[WhiteElo "2241"]
[BlackElo "2007"]
[Annotator "NA"]
[PlyCount "80"]
[EventDate "2019.08.05"]
[EventType "swiss"]
[EventCountry "POL"]
[SourceTitle "playchess.com"]
[Source "ChessBase"]
[SourceQuality "1"]
[TimeControl "40/5400+30:1800+30"]

1. e4 c5 2. Nf3 e6 3. d4 cxd4 4. Nxd4 Nc6 5. Nc3 Qc7 6. Be2 a6 7. O-O Nf6 8. Be3 Bb4 9. Na4 O-O 10. c4 Bd6 11. g3 Nxe4 12. c5 Be7 13. Nxc6 bxc6 14. Qd4 d5 15. cxd6 Nxd6 16. Bf4 f6 17. Qb6 Ra7 18. Rfd1 e5 19. Be3 Rb7 20. Qxc7 Rxc7 21. Bb6 Rb7 22. Rac1 Nb5 23. Bf3 Be6 24. Bxc6 Rbb8 25. Bd5 Bxd5 26. Rxd5 Rfc8 27. Rxc8+ Rxc8 28. Bc5 Rd8 29. Rxd8+ Bxd8 30. Bb6 Bxb6 31. Nxb6 Kf7 32. f3 Ke6 33. Kf2 f5 34. Ke3 g5 35. Nc4 Kd5 36. Nb6+ Ke6 37. Nc4 Kd5 38. Nb6+ Ke6 39. Na4 Kd5 40. Nb6+ Ke6 {Ke4} 1/2-1/2

[Event "3rd Memorial Warakomska 2019"]
[Site "Suwalki"]
[Date "2019.08.07"]
[Round "3.29"]
[White "Hoffmann, Yair"]
[Black "Walter, Szymon"]
[Result "1/2-1/2"]
[ECO "E16"]
[WhiteElo "2099"]
[BlackElo "2314"]
[Annotator "ChessBase"]
[PlyCount "54"]
[EventDate "2019.08.05"]
[EventType "swiss"]
[EventCountry "POL"]
[SourceTitle "playchess.com"]
[Source "ChessBase"]
[SourceQuality "1"]
[TimeControl "40/5400+30:1800+30"]

1. d4 {[%emt 0:00:00]} Nf6 {[%emt 0:01:58]} 2. c4 {[%emt 0:00:00]} e6 {[%emt 0:01:11]} 3. Nf3 {[%emt 0:00:11]} Bb4+ {[%emt 0:00:53]} 4. Bd2 {[%emt 0:00:14]} Qe7 {[%emt 0:01:18]} 5. g3 {[%emt 0:00:38]} Nc6 {[%emt 0:01:02]} 6. Nc3 {[%emt 0:00:33]} Bxc3 {[%emt 0:01:01]} 7. Bxc3 {[%emt 0:00:10]} Ne4 {[%emt 0:00:41]} 8. Rc1 {[%emt 0:00:49]} Nxc3 {[%emt 0:02:16]} 9. Rxc3 {[%emt 0:00:17]} d6 {[%emt 0:02:27]} 10. d5 {[%emt 0:02:13]} Nb8 {[%emt 0:01:33]} 11. dxe6 {[%emt 0:01:12]} fxe6 {[%emt 0:01:45]} 12. Bg2 {[%emt 0:01:27]} O-O {[%emt 0:04:09]} 13. O-O {[%emt 0:02:41]} Nd7 {[%emt 0:15:19]} 14. Nd4 {[%emt 0:01:19]} Nf6 {[%emt 0:01:47]} 15. b4 {[%emt 0:09:50]} c6 {[%emt 0:03:03]} 16. e4 {[%emt 0:08:29]} Rd8 {[%emt 0:03:55]} 17. Rd3 {[%emt 0:04:01]} e5 {[%emt 0:09:45]} 18. Nc2 {[%emt 0:01:40]} Be6 {[%emt 0:06:36]} 19. Ne3 {[%emt 0:00:49]} Rd7 {[%emt 0:03:57]} 20. Qc2 {[%emt 0:05:27]} Rad8 {[%emt 0:01:28]} 21. Rfd1 {[%emt 0:01:00]} g6 {[%emt 0:04:31]} 22. a3 {[%emt 0:01:35]} Nh5 {[%emt 0:05:55]} 23. Qc3 {[%emt 0:06:27]} Ng7 {[%emt 0:01:16]} 24. Bf1 {[%emt 0:04:32]} Bf7 {[%emt 0:03:00]} 25. Bh3 {[%emt 0:01:17]} Be6 {[%emt 0:00:41]} 26. Bf1 {[%emt 0:00:44]} Bf7 {[%emt 0:01:34]} 27. Bh3 {[%emt 0:00:50]} Be6 {[%emt 0:00:07]} 1/2-1/2

[Event "3rd Memorial Warakomska 2019"]
[Site "Suwalki"]
[Date "2019.08.07"]
[Round "3.30"]
[White "Szpar, Milosz"]
[Black "Wolanski, Michal"]
[Result "1-0"]
[ECO "B36"]
[WhiteElo "2289"]
[BlackElo "2007"]
[Annotator "NA"]
[PlyCount "89"]
[EventDate "2019.08.05"]
[EventType "swiss"]
[EventCountry "POL"]
[SourceTitle "playchess.com"]
[Source "ChessBase"]
[SourceQuality "1"]
[TimeControl "40/5400+30:1800+30"]

1. e4 {[%emt 0:00:00]} c5 {[%emt 0:00:00]} 2. Nf3 {[%emt 0:00:00]} g6 {[%emt 0:00:00]} 3. d4 {[%emt 0:00:10]} cxd4 {[%emt 0:00:00]} 4. Nxd4 {[%emt 0:00:25]} Nc6 {[%emt 0:00:00]} 5. c4 {[%emt 0:00:34]} Nf6 {[%emt 0:00:00]} 6. Nc3 {[%emt 0:00:09]} d6 {[%emt 0:00:09]} 7. Be2 {[%emt 0:00:13]} Nxd4 {[%emt 0:00:18]} 8. Qxd4 {[%emt 0:00:06]} Bg7 {[%emt 0:00:08]} 9. Be3 {[%emt 0:00:06]} O-O {[%emt 0:00:18]} 10. Qd2 {[%emt 0:00:06]} Bd7 {[%emt 0:04:52]} 11. O-O {[%emt 0:01:41]} Bc6 {[%emt 0:00:07]} 12. f3 {[%emt 0:00:31]} Nd7 {[%emt 0:00:52] B36: Sicilian: Maroczy Bind: Gurgenidze System} (12... a5 13. b3 Nd7 14. Rab1 Nc5 15. Rfd1 Be5 16. Qe1 Qc7 17. Nd5 Bxd5 18. cxd5 Rfc8 19. Rdc1 Qb6 20. Qd1 Bf4 21. Qd4 Bxe3+ 22. Qxe3 Na4 23. Qxb6 Nxb6 {½-½ (37) Wojtaszek,R (2701)-Lenic,L (2621) Legnica 2013}) 13. b4 {[%emt 0:04:26]} b6 {[%emt 0:00:35]} 14. a3 {[%emt 0:05:33]} Rc8 $146 {[%emt 0:05:22]} ({Predecessor:} 14... Bb7 15. Bd4 Nf6 16. Rfc1 Qd7 17. Ra2 Rfd8 18. Rac2 e6 19. Bf1 Rac8 20. Nb5 {1-0 (60) Wolter,K (2356)-Straub,P (2126) Budapest 2000}) 15. Rac1 {[%emt 0:02:06]} Ne5 {[%emt 0:06:35]} 16. Nd5 {[%emt 0:13:37]} e6 {[%emt 0:23:37]} 17. Nc3 {[%emt 0:01:55]} f5 {[%emt 0:16:14]} 18. exf5 {[%emt 0:05:52]} gxf5 {[%emt 0:01:17]} 19. Kh1 $14 {[%emt 0:07:42]} Qe7 {[%emt 0:04:19]} 20. Rfd1 {[%emt 0:05:20]} Rfd8 {[%emt 0:01:01]} 21. Bf1 {[%emt 0:03:54]} Rd7 {[%emt 0:10:30]} 22. Qa2 {[%emt 0:03:47]} Kh8 {[%emt 0:01:47]} 23. Ne2 {[%emt 0:03:21]} Rg8 {[%emt 0:06:26]} 24. Nd4 {[%emt 0:04:18]} Bb7 {[%emt 0:00:10]} 25. Rd2 {[%emt 0:05:43]} Qf6 {[%emt 0:01:44]} 26. Re1 {[%emt 0:06:18]} Ng6 {[%emt 0:04:37]} 27. c5 {[%emt 0:04:38]} f4 {[%emt 0:03:06]} 28. Bg1 {[%emt 0:03:46]} Bd5 {[%emt 0:00:50]} 29. Bc4 {[%emt 0:05:23]} Bxc4 {[%emt 0:00:37]} 30. Qxc4 {[%emt 0:00:09]} dxc5 {[%emt 0:00:33]} 31. bxc5 {[%emt 0:00:59]} bxc5 {[%emt 0:01:51]} 32. Qxc5 {[%emt 0:01:08]} Rgd8 {[%emt 0:00:47]} 33. Red1 {[%emt 0:03:55]} e5 {[%emt 0:01:51]} 34. Nb3 {[%emt 0:00:51]} Rxd2 {[%emt 0:00:02]} 35. Rxd2 {[%emt 0:00:17]} Rxd2 {[%emt 0:00:06]} 36. Nxd2 {[%emt 0:00:05]} a6 {[%emt 0:01:05]} 37. Qc8+ {[%emt 0:02:04]} Bf8 {[%emt 0:01:00]} 38. Ne4 {[%emt 0:01:31]} Ne7 {[%emt 0:01:24]} 39. Qb8 {[%emt 0:04:49]} Qg7 {[%emt 0:02:49]} 40. Qa8 {[%emt 0:00:00]} Qh6 {[%emt 0:00:00]} 41. Bc5 {[%emt 0:07:55]} Kg7 {[%emt 0:17:04]} 42. Bd6 {[%emt 0:01:37]} Kf7 {[%emt 0:02:16]} 43. Qxa6 {[%emt 0:03:10]} Nf5 {[%emt 0:02:17]} 44. Qc4+ {[%emt 0:01:58]} Kg6 {[%emt 0:02:30]} 45. Qe6+ {[%emt 0:00:13]} 1-0

[Event "3rd Memorial Warakomska 2019"]
[Site "Suwalki"]
[Date "2019.08.07"]
[Round "3.31"]
[White "Bai, Adelard"]
[Black "Sernecki, Franciszek"]
[Result "0-1"]
[ECO "E04"]
[WhiteElo "2113"]
[BlackElo "2275"]
[Annotator "NA"]
[PlyCount "69"]
[EventDate "2019.08.05"]
[EventType "swiss"]
[EventCountry "POL"]
[SourceTitle "playchess.com"]
[Source "ChessBase"]
[SourceQuality "1"]
[TimeControl "40/5400+30:1800+30"]

1. d4 {[%emt 0:00:00]} Nf6 {[%emt 0:00:00]} 2. c4 {[%emt 0:00:00]} e6 {[%emt 0:00:00]} 3. Nf3 {[%emt 0:00:00]} d5 {[%emt 0:00:00]} 4. g3 {[%emt 0:00:07]} dxc4 $14 {[%emt 0:00:17]} 5. Bg2 {[%emt 0:00:09]} Bb4+ {[%emt 0:00:56]} 6. Bd2 {[%emt 0:02:34]} c5 {[%emt 0:00:39]} 7. Bxb4 {[%emt 0:12:33]} cxb4 {[%emt 0:00:57]} 8. Qa4+ {[%emt 0:01:27]} Nc6 {[%emt 0:43:32]} 9. Ne5 {[%emt 0:03:18]} O-O {[%emt 0:03:40]} 10. Nxc6 {[%emt 0:01:13]} bxc6 {[%emt 0:00:46]} 11. Qxb4 {[%emt 0:23:27]} Qxd4 {[%emt 0:04:58]} 12. Bxc6 {[%emt 0:02:25]} Rd8 {[%emt 0:09:15]} 13. O-O {[%emt 0:10:07]} a5 {[%emt 0:04:13]} 14. Qc3 {[%emt 0:00:57]} Rb8 {[%emt 0:05:17]} 15. Qxd4 {[%emt 0:03:15]} Rxd4 {[%emt 0:04:10]} 16. Nc3 {[%emt 0:03:23]} Rxb2 {[%emt 0:08:16]} 17. Rfd1 {[%emt 0:08:31]} e5 {[%emt 0:01:54]} 18. Rxd4 {[%emt 0:00:46]} exd4 {[%emt 0:02:01]} 19. Rd1 {[%emt 0:00:07]} Bd7 {[%emt 0:07:13]} 20. Nd5 {[%emt 0:07:09]} Bxc6 {[%emt 0:00:50]} 21. Ne7+ {[%emt 0:00:07]} Kf8 {[%emt 0:00:01]} 22. Nxc6 {[%emt 0:00:08]} c3 {[%emt 0:00:50]} 23. Kg2 {[%emt 0:01:50]} Rd2 {[%emt 0:00:50]} 24. Rc1 {[%emt 0:00:57]} Nd5 {[%emt 0:00:39]} 25. a3 {[%emt 0:00:25]} c2 {[%emt 0:00:32]} 26. Ne5 {[%emt 0:03:01]} Rxe2 {[%emt 0:00:23]} 27. Nd3 {[%emt 0:00:18]} Rd2 {[%emt 0:00:19]} 28. Nb2 {[%emt 0:01:20]} Nc3 {[%emt 0:00:50]} 29. Kf1 {[%emt 0:00:38]} Rd1+ {[%emt 0:00:14]} 30. Nxd1 {[%emt 0:00:19]} cxd1=Q+ {[%emt 0:00:07]} 31. Rxd1 {[%emt 0:00:11]} Nxd1 {[%emt 0:00:04]} 32. Ke2 {[%emt 0:00:05]} Nb2 {[%emt 0:00:12]} 33. Kd2 {[%emt 0:00:05]} Nc4+ {[%emt 0:00:14]} 34. Kd3 {[%emt 0:00:05]} Nxa3 {[%emt 0:00:04]} 35. Kxd4 0-1

[Event "3rd Memorial Warakomska 2019"]
[Site "Suwalki"]
[Date "2019.08.07"]
[Round "3.32"]
[White "Maj, Pawel"]
[Black "Czerw, Dawid"]
[Result "1/2-1/2"]
[ECO "A15"]
[WhiteElo "2127"]
[BlackElo "2326"]
[Annotator "NA"]
[PlyCount "100"]
[EventDate "2019.08.05"]
[EventType "swiss"]
[EventCountry "POL"]
[SourceTitle "playchess.com"]
[Source "ChessBase"]
[SourceQuality "1"]
[TimeControl "40/5400+30:1800+30"]

1. c4 {[%emt 0:00:00]} Nf6 {[%emt 0:00:00]} 2. g3 {[%emt 0:00:00]} e6 {[%emt 0:00:00]} 3. Bg2 {[%emt 0:00:00]} d5 {[%emt 0:00:00]} 4. Nf3 {[%emt 0:00:00]} Be7 {[%emt 0:01:41]} 5. b3 {[%emt 0:00:10]} d4 {[%emt 0:00:38]} 6. e3 {[%emt 0:00:32]} c5 {[%emt 0:00:05]} 7. exd4 {[%emt 0:00:04]} cxd4 {[%emt 0:00:04]} 8. O-O {[%emt 0:00:05]} O-O {[%emt 0:00:21]} 9. d3 {[%emt 0:01:32]} Nc6 {[%emt 0:00:31]} 10. Na3 {[%emt 0:02:41]} e5 {[%emt 0:19:05]} 11. Re1 {[%emt 0:04:38]} Bb4 {[%emt 0:02:54]} 12. Re2 {[%emt 0:10:24]} Re8 {[%emt 0:25:42]} 13. Nc2 {[%emt 0:07:51]} Bc3 {[%emt 0:01:04]} 14. Rb1 {[%emt 0:00:05]} a5 {[%emt 0:10:43]} 15. Bg5 $15 {[%emt 0:08:08]} h6 {[%emt 0:02:17]} 16. Bxf6 {[%emt 0:00:51]} Qxf6 {[%emt 0:00:08]} 17. Nd2 {[%emt 0:06:29]} Bg4 {[%emt 0:05:25]} 18. f3 {[%emt 0:02:03]} Bf5 {[%emt 0:01:45]} 19. Ne4 {[%emt 0:03:29]} Qd8 {[%emt 0:00:26]} 20. Na3 {[%emt 0:07:59]} Bb4 {[%emt 0:02:14]} 21. Nb5 {[%emt 0:01:43]} Bg6 {[%emt 0:02:40]} 22. a3 {[%emt 0:02:18]} Be7 {[%emt 0:02:45]} 23. Qf1 {[%emt 0:04:18]} f5 {[%emt 0:01:27]} 24. Nd2 {[%emt 0:01:01]} Bg5 {[%emt 0:02:02]} 25. f4 {[%emt 0:17:19]} exf4 {[%emt 0:00:09]} 26. h4 {[%emt 0:05:36]} Rxe2 {[%emt 0:03:00]} 27. Qxe2 {[%emt 0:00:07]} f3 {[%emt 0:00:27]} 28. Bxf3 {[%emt 0:01:45]} Be3+ {[%emt 0:00:10]} 29. Kg2 {[%emt 0:00:17]} f4 {[%emt 0:03:54]} 30. Be4 {[%emt 0:02:45]} Bxe4+ {[%emt 0:01:19]} 31. Nxe4 {[%emt 0:00:06]} Ne5 {[%emt 0:00:27]} 32. Rf1 {[%emt 0:02:08]} f3+ {[%emt 0:02:21]} 33. Rxf3 {[%emt 0:00:04]} Nxf3 {[%emt 0:00:04]} 34. Qxf3 {[%emt 0:00:04]} Qe7 {[%emt 0:03:03]} 35. Nbd6 {[%emt 0:02:51]} Rf8 {[%emt 0:03:29]} 36. Qh5 {[%emt 0:01:14]} b6 {[%emt 0:02:28]} 37. Qg6 {[%emt 0:01:01]} Qd7 {[%emt 0:01:37]} 38. g4 {[%emt 0:01:29]} Qe7 {[%emt 0:01:44]} 39. Nf5 {[%emt 0:01:18]} Qf7 {[%emt 0:00:36]} 40. h5 Qxg6 {[%emt 0:00:00]} 41. hxg6 {[%emt 0:03:06]} Re8 {[%emt 0:06:01]} 42. Kf3 {[%emt 0:03:40]} Re6 {[%emt 0:02:11]} 43. Nxe3 {[%emt 0:01:30]} dxe3 {[%emt 0:00:05]} 44. Kxe3 {[%emt 0:00:03]} Rxg6 {[%emt 0:00:10]} 45. Kf4 {[%emt 0:00:05]} Re6 {[%emt 0:03:25]} 46. d4 {[%emt 0:00:33]} Re8 {[%emt 0:03:14]} 47. c5 {[%emt 0:04:51]} bxc5 {[%emt 0:00:51]} 48. dxc5 {[%emt 0:09:30]} Kf8 {[%emt 0:04:11]} 49. Nd6 {[%emt 0:01:50]} Re6 {[%emt 0:02:22]} 50. b4 {[%emt 0:00:42]} axb4 {[%emt 0:00:28] Ke4} 1/2-1/2

[Event "3rd Memorial Warakomska 2019"]
[Site "Suwalki"]
[Date "2019.08.07"]
[Round "3.33"]
[White "Budrewicz, Krzysztof"]
[Black "Dmochowska, Agnieszka"]
[Result "1-0"]
[ECO "D37"]
[WhiteElo "2188"]
[BlackElo "2126"]
[Annotator "NA"]
[PlyCount "97"]
[EventDate "2019.08.05"]
[EventType "swiss"]
[EventCountry "POL"]
[SourceTitle "playchess.com"]
[Source "ChessBase"]
[SourceQuality "1"]
[TimeControl "40/5400+30:1800+30"]

1. d4 {[%emt 0:00:00]} Nf6 {[%emt 0:01:34]} 2. c4 {[%emt 0:00:00]} e6 {[%emt 0:00:05]} 3. Nf3 {[%emt 0:00:00]} d5 {[%emt 0:00:05]} 4. Nc3 {[%emt 0:00:07]} Be7 {[%emt 0:00:09]} 5. Bf4 {[%emt 0:00:19]} O-O {[%emt 0:00:13]} 6. e3 {[%emt 0:00:06]} b6 {[%emt 0:00:22]} 7. Qc2 {[%emt 0:01:48]} Ba6 {[%emt 0:02:50]} 8. Ne5 {[%emt 0:06:43]} c5 {[%emt 0:08:57]} 9. O-O-O {[%emt 0:01:52]} cxd4 {[%emt 0:01:52]} 10. Rxd4 {[%emt 0:01:09]} Bc5 {[%emt 0:03:54]} 11. Rd2 {[%emt 0:00:55]} Qe7 {[%emt 0:04:07]} 12. Kb1 {[%emt 0:07:01]} dxc4 {[%emt 0:10:26]} 13. Nxc4 {[%emt 0:01:38]} Nbd7 {[%emt 0:03:30]} 14. Qa4 {[%emt 0:06:49]} Bxc4 {[%emt 0:10:24]} 15. Bxc4 {[%emt 0:00:13]} a6 {[%emt 0:04:31]} 16. Be2 {[%emt 0:01:39]} b5 {[%emt 0:00:46]} 17. Qb3 {[%emt 0:05:04]} Nb6 {[%emt 0:11:52]} 18. Rc1 {[%emt 0:05:28]} Nfd5 {[%emt 0:05:17]} 19. Nxd5 {[%emt 0:02:59]} Nxd5 {[%emt 0:02:42]} 20. Bf3 {[%emt 0:00:57]} Rad8 {[%emt 0:00:09]} 21. Bxd5 {[%emt 0:02:35]} exd5 {[%emt 0:00:06]} 22. Qc2 {[%emt 0:01:08]} Ba7 {[%emt 0:06:37]} 23. Qf5 {[%emt 0:07:41]} d4 {[%emt 0:12:21]} 24. e4 {[%emt 0:05:59]} Qd7 {[%emt 0:03:29]} 25. Qxd7 {[%emt 0:03:17]} Rxd7 {[%emt 0:00:02]} 26. Rc6 {[%emt 0:00:13]} Re8 {[%emt 0:00:55]} 27. f3 {[%emt 0:00:29]} a5 {[%emt 0:01:10]} 28. Kc2 {[%emt 0:00:42]} f6 {[%emt 0:01:07]} 29. Kd3 {[%emt 0:00:14]} Bb8 {[%emt 0:01:55]} 30. Bxb8 {[%emt 0:00:26]} Rxb8 {[%emt 0:00:05]} 31. Rdc2 {[%emt 0:00:04]} Rbb7 {[%emt 0:00:23]} 32. R2c5 {[%emt 0:00:21]} Kf7 {[%emt 0:00:58]} 33. h4 {[%emt 0:00:23]} a4 {[%emt 0:00:18]} 34. h5 {[%emt 0:00:24]} Ke7 {[%emt 0:02:23]} 35. h6 {[%emt 0:01:00]} gxh6 {[%emt 0:00:55]} 36. Rf5 {[%emt 0:00:21]} Rd6 {[%emt 0:00:22]} 37. Rxd6 {[%emt 0:00:12]} Kxd6 {[%emt 0:00:01]} 38. Rxf6+ {[%emt 0:00:06]} Ke5 {[%emt 0:00:34]} 39. Rf5+ {[%emt 0:00:10]} Ke6 {[%emt 0:00:14]} 40. Rh5 {[%emt 0:00:00]} Rg7 {[%emt 0:00:00]} 41. g4 {[%emt 0:01:01]} Rf7 {[%emt 0:01:23]} 42. Kxd4 {[%emt 0:01:06]} Rxf3 {[%emt 0:00:21]} 43. Rxh6+ {[%emt 0:00:07]} Ke7 {[%emt 0:00:06]} 44. Rxh7+ {[%emt 0:00:05]} Ke6 {[%emt 0:00:06]} 45. Rb7 {[%emt 0:00:12]} Rg3 {[%emt 0:00:17]} 46. Rb6+ {[%emt 0:00:10]} Ke7 {[%emt 0:00:06]} 47. Rxb5 {[%emt 0:01:32]} Rxg4 {[%emt 0:00:07]} 48. a3 {[%emt 0:00:22]} Rg2 {[%emt 0:00:11]} 49. Kc5 {[%emt 0:00:40]} 1-0

[Event "3rd Memorial Warakomska 2019"]
[Site "Suwalki"]
[Date "2019.08.07"]
[Round "3.34"]
[White "Reza, Wojciech"]
[Black "Balinski, Damian"]
[Result "1-0"]
[ECO "B08"]
[WhiteElo "2261"]
[BlackElo "2176"]
[Annotator "NA"]
[PlyCount "77"]
[EventDate "2019.08.05"]
[EventType "swiss"]
[EventCountry "POL"]
[SourceTitle "playchess.com"]
[Source "ChessBase"]
[SourceQuality "1"]
[TimeControl "40/5400+30:1800+30"]

1. e4 {[%emt 0:00:00]} d6 {[%emt 0:00:00]} 2. d4 {[%emt 0:00:00]} Nf6 {[%emt 0:00:00]} 3. Nc3 {[%emt 0:00:04]} g6 {[%emt 0:00:00]} 4. Nf3 {[%emt 0:00:34]} Bg7 $14 {[%emt 0:00:00]} 5. Be2 {[%emt 0:00:06]} O-O {[%emt 0:00:03]} 6. O-O {[%emt 0:00:20]} Bg4 {[%emt 0:00:13]} 7. Be3 {[%emt 0:03:52]} Nc6 {[%emt 0:00:08]} 8. h3 {[%emt 0:16:32]} Bxf3 {[%emt 0:00:03]} 9. Bxf3 {[%emt 0:00:08]} e5 {[%emt 0:00:05]} 10. d5 {[%emt 0:02:36]} Ne7 {[%emt 0:00:03]} 11. a4 {[%emt 0:27:31]} Nd7 {[%emt 0:00:12]} 12. a5 {[%emt 0:00:12]} f5 {[%emt 0:02:10]} 13. a6 {[%emt 0:01:38]} b6 {[%emt 0:00:04]} 14. Nb5 {[%emt 0:04:54]} fxe4 {[%emt 0:37:36]} 15. Bxe4 {[%emt 0:01:03]} Nc5 {[%emt 0:00:34]} 16. Nc3 {[%emt 0:16:24]} Nf5 {[%emt 0:01:50]} 17. b4 {[%emt 0:04:26]} Nd7 {[%emt 0:11:17]} 18. Qd3 {[%emt 0:08:59]} Rf7 {[%emt 0:10:27]} 19. Nb5 {[%emt 0:02:27]} Nf6 {[%emt 0:03:11]} 20. c4 {[%emt 0:04:56]} Nxe4 {[%emt 0:13:20]} 21. Qxe4 {[%emt 0:00:07]} Qd7 {[%emt 0:02:32]} 22. Rae1 {[%emt 0:02:06]} Qc8 {[%emt 0:02:13]} 23. Ra1 {[%emt 0:00:16]} Qd7 {[%emt 0:03:37]} 24. Kh2 {[%emt 0:00:44]} h5 {[%emt 0:06:06]} 25. g3 {[%emt 0:01:02]} Kh7 {[%emt 0:01:00]} 26. Kg2 {[%emt 0:00:22]} Kg8 {[%emt 0:02:30]} 27. Ra3 {[%emt 0:00:22]} Kh7 {[%emt 0:02:41]} 28. Bg5 {[%emt 0:00:57]} Nd4 {[%emt 0:01:14]} 29. Nxd4 {[%emt 0:00:22]} exd4 {[%emt 0:00:01]} 30. Re1 {[%emt 0:00:22]} Raf8 {[%emt 0:00:05]} 31. f4 {[%emt 0:00:28]} Qc8 {[%emt 0:00:31]} 32. Qe6 {[%emt 0:00:58]} Qb8 {[%emt 0:01:33]} 33. Be7 {[%emt 0:00:39]} Rxe7 {[%emt 0:00:36]} 34. Qxe7 {[%emt 0:00:05]} b5 {[%emt 0:00:07]} 35. c5 {[%emt 0:00:41]} dxc5 {[%emt 0:00:18]} 36. Qxc5 {[%emt 0:00:11]} h4 {[%emt 0:00:58]} 37. Re7 {[%emt 0:00:38]} hxg3 {[%emt 0:00:40]} 38. Qxd4 {[%emt 0:00:22]} Rg8 {[%emt 0:00:17]} 39. f5 {[%emt 0:01:01]} 1-0

[Event "3rd Memorial Warakomska 2019"]
[Site "Suwalki"]
[Date "2019.08.07"]
[Round "3.35"]
[White "Szostko, Jakub"]
[Black "Praczukowski, Stanislaw"]
[Result "1/2-1/2"]
[ECO "C72"]
[WhiteElo "2245"]
[BlackElo "2166"]
[Annotator "NA"]
[PlyCount "95"]
[EventDate "2019.08.05"]
[EventType "swiss"]
[EventCountry "POL"]
[SourceTitle "playchess.com"]
[Source "ChessBase"]
[SourceQuality "1"]
[TimeControl "40/5400+30:1800+30"]

1. e4 {[%emt 0:00:00]} e5 {[%emt 0:00:00]} 2. Nf3 {[%emt 0:00:00]} Nc6 {[%emt 0:00:00]} 3. Bb5 {[%emt 0:00:00]} a6 {[%emt 0:00:00]} 4. Ba4 {[%emt 0:00:00]} d6 {[%emt 0:00:00]} 5. O-O {[%emt 0:03:31]} Bd7 {[%emt 0:00:55]} 6. Re1 {[%emt 0:06:01]} Nf6 {[%emt 0:03:49]} 7. c3 {[%emt 0:03:35]} g6 {[%emt 0:24:25]} 8. d4 {[%emt 0:09:42]} b5 {[%emt 0:00:24]} 9. Bc2 {[%emt 0:02:09]} Bg7 {[%emt 0:00:14]} 10. h3 {[%emt 0:01:38]} O-O {[%emt 0:00:23]} 11. Nbd2 {[%emt 0:14:27]} Re8 {[%emt 0:12:03]} 12. Nf1 {[%emt 0:02:09]} Rb8 {[%emt 0:10:54]} 13. b3 {[%emt 0:08:25]} exd4 {[%emt 0:06:39]} 14. cxd4 Nb4 15. Bb1 {[%emt 0:01:10]} c5 {[%emt 0:01:16]} 16. Bb2 {[%emt 0:10:50]} Nh5 {[%emt 0:07:46]} 17. Qd2 {[%emt 0:00:30]} Nc6 {[%emt 0:13:41]} 18. Rd1 cxd4 19. Nxd4 {[%emt 0:10:42]} Qf6 {[%emt 0:02:52]} 20. Nxc6 {[%emt 0:01:40]} Qxb2 {[%emt 0:00:12]} 21. Qxb2 {[%emt 0:01:09]} Bxb2 {[%emt 0:00:07]} 22. Nxb8 {[%emt 0:00:03]} Rxb8 {[%emt 0:01:42]} 23. Bc2 {[%emt 0:02:34]} Bxa1 {[%emt 0:00:13]} 24. Rxa1 {[%emt 0:00:04]} Kf8 {[%emt 0:03:00]} 25. Rd1 {[%emt 0:00:56]} Ke7 {[%emt 0:01:40]} 26. Ne3 {[%emt 0:00:55]} Be6 {[%emt 0:00:22]} 27. f3 {[%emt 0:04:43]} Rc8 {[%emt 0:00:27]} 28. Kf2 {[%emt 0:03:30]} Nf4 {[%emt 0:02:16]} 29. Rd2 {[%emt 0:04:25]} Rc3 {[%emt 0:04:58]} 30. h4 {[%emt 0:00:30]} h6 {[%emt 0:00:30]} 31. Nd1 {[%emt 0:01:15]} Rc8 {[%emt 0:00:24]} 32. g3 {[%emt 0:03:20]} Nh5 33. Ne3 {[%emt 0:00:26]} g5 {[%emt 0:01:34]} 34. hxg5 {[%emt 0:00:30]} hxg5 {[%emt 0:00:02]} 35. Bd1 {[%emt 0:01:34]} Nf6 {[%emt 0:01:13]} 36. Rc2 {[%emt 0:01:09]} Rc5 {[%emt 0:01:36]} 37. Be2 {[%emt 0:01:23]} g4 {[%emt 0:01:20]} 38. Rxc5 {[%emt 0:01:21]} dxc5 {[%emt 0:00:05]} 39. e5 {[%emt 0:00:19]} Nd5 {[%emt 0:01:00]} 40. Nxd5+ {[%emt 0:00:00]} Bxd5 {[%emt 0:00:00]} 41. f4 Be6 {[%emt 0:02:36]} 42. Ke3 {[%emt 0:05:16]} f5 {[%emt 0:03:48]} 43. exf6+ {[%emt 0:03:02]} Kxf6 {[%emt 0:03:07]} 44. Bd3 {[%emt 0:01:10]} Bd7 {[%emt 0:04:57]} 45. Be4 {[%emt 0:02:42]} b4 {[%emt 0:04:26]} 46. Kd3 {[%emt 0:07:35]} Bb5+ {[%emt 0:00:15]} 47. Kc2 {[%emt 0:00:22]} a5 {[%emt 0:01:47]} 48. Kb2 {[%emt 0:03:06]} 1/2-1/2